[Event "*** Titled Tuesday Blitz"]
[Site "Chess.com"]
[Date "2020.05.12"]
[Round "4"]
[White "AlanZhang"]
[Black "Xtrmntr78"]
[Result "1-0"]
[WhiteElo "2182"]
[BlackElo "2389"]
[TimeControl "180+1"]
[EndTime "10:40:05 PDT"]
[Termination "AlanZhang won on time"]

1. e4 {[%clk 0:03:00.9]} 1... e5 {[%clk 0:02:59.6]} 2. Nf3 {[%clk 0:03:01.4]}
2... d5 {[%clk 0:02:59.6]} 3. Nxe5 {[%clk 0:02:55.7]} 3... Bd6 {[%clk
0:02:59.8]} 4. d4 {[%clk 0:02:55.3]} 4... dxe4 {[%clk 0:03:00]} 5. Nc3 {[%clk
0:02:53.6]} 5... Bxe5 {[%clk 0:02:59.3]} 6. dxe5 {[%clk 0:02:53.1]} 6... Qxd1+
{[%clk 0:02:59.7]} 7. Kxd1 {[%clk 0:02:44]} 7... Bf5 {[%clk 0:02:58]} 8. Nd5
{[%clk 0:02:19.5]} 8... Na6 {[%clk 0:02:56.6]} 9. Bxa6 {[%clk 0:02:18.1]} 9...
O-O-O {[%clk 0:02:56.4]} 10. Ke2 {[%clk 0:01:52.9]} 10... bxa6 {[%clk
0:02:44.8]} 11. Ne3 {[%clk 0:01:20.4]} 11... Be6 {[%clk 0:02:43.9]} 12. b3
{[%clk 0:01:14.5]} 12... Ne7 {[%clk 0:02:39.5]} 13. Bb2 {[%clk 0:01:08.5]} 13...
Ng6 {[%clk 0:02:37]} 14. Rhd1 {[%clk 0:00:58.7]} 14... Nf4+ {[%clk 0:02:29.3]}
15. Kf1 {[%clk 0:00:58.4]} 15... Nd5 {[%clk 0:01:23.8]} 16. Nxd5 {[%clk
0:00:37.1]} 16... Bxd5 {[%clk 0:01:23.3]} 17. Bd4 {[%clk 0:00:34.4]} 17... Kb7
{[%clk 0:01:20.6]} 18. Rd2 {[%clk 0:00:21.5]} 18... Rhe8 {[%clk 0:01:10.8]} 19.
Rad1 {[%clk 0:00:21.1]} 19... Bc6 {[%clk 0:01:05.1]} 20. Ke2 {[%clk 0:00:20.1]}
20... Re7 {[%clk 0:00:52.7]} 21. Ke3 {[%clk 0:00:20.4]} 21... g5 {[%clk
0:00:44.2]} 22. h3 {[%clk 0:00:12.2]} 22... h5 {[%clk 0:00:43]} 23. c4 {[%clk
0:00:06.5]} 23... Ree8 {[%clk 0:00:36.4]} 24. Bc3 {[%clk 0:00:06.8]} 24... Rxd2
{[%clk 0:00:35.7]} 25. Rxd2 {[%clk 0:00:07.7]} 25... Kc8 {[%clk 0:00:32.9]} 26.
h4 {[%clk 0:00:07.9]} 26... gxh4 {[%clk 0:00:30.1]} 27. Kf4 {[%clk 0:00:08.4]}
27... Rg8 {[%clk 0:00:29.6]} 28. g3 {[%clk 0:00:08.3]} 28... h3 {[%clk
0:00:27.8]} 29. Rd1 {[%clk 0:00:07.5]} 29... Rg4+ {[%clk 0:00:23.7]} 30. Ke3
{[%clk 0:00:06.8]} 30... h4 {[%clk 0:00:22.4]} 31. gxh4 {[%clk 0:00:04.5]} 31...
Rxh4 {[%clk 0:00:22]} 32. Rh1 {[%clk 0:00:04.9]} 32... h2 {[%clk 0:00:20.1]} 33.
e6 {[%clk 0:00:05.3]} 33... f5 {[%clk 0:00:18.2]} 34. Be5 {[%clk 0:00:05]} 34...
Kd8 {[%clk 0:00:15.1]} 35. Rxh2 {[%clk 0:00:04.4]} 35... Rxh2 {[%clk 0:00:14.3]}
36. Bxh2 {[%clk 0:00:05.3]} 36... Ke7 {[%clk 0:00:14.2]} 37. Bxc7 {[%clk
0:00:05.5]} 37... Kxe6 {[%clk 0:00:14.4]} 38. Kf4 {[%clk 0:00:05.7]} 38... Bd7
{[%clk 0:00:11.7]} 39. Bb8 {[%clk 0:00:05.8]} 39... a5 {[%clk 0:00:10.4]} 40.
Bxa7 {[%clk 0:00:06.2]} 40... Kd6 {[%clk 0:00:10.9]} 41. Bd4 {[%clk 0:00:05.7]}
41... Kc6 {[%clk 0:00:10.8]} 42. a3 {[%clk 0:00:05.4]} 42... a4 {[%clk
0:00:10.2]} 43. b4 {[%clk 0:00:05.5]} 43... Be6 {[%clk 0:00:09.8]} 44. c5 {[%clk
0:00:05.6]} 44... Kb5 {[%clk 0:00:09.6]} 45. Ke5 {[%clk 0:00:05.9]} 45... Bd7
{[%clk 0:00:09.2]} 46. Kd6 {[%clk 0:00:06.2]} 46... Bc6 {[%clk 0:00:09.2]} 47.
Ke6 {[%clk 0:00:05.6]} 47... Kc4 {[%clk 0:00:08.7]} 48. Bf6 {[%clk 0:00:03.4]}
48... f4 {[%clk 0:00:08.3]} 49. Kd6 {[%clk 0:00:03.7]} 49... Kb5 {[%clk
0:00:05.4]} 50. Bg5 {[%clk 0:00:03.5]} 50... e3 {[%clk 0:00:05.1]} 51. fxe3
{[%clk 0:00:03.2]} 51... f3 {[%clk 0:00:05]} 52. Bh4 {[%clk 0:00:02.9]} 52...
Be4 {[%clk 0:00:04.6]} 53. Bf2 {[%clk 0:00:03.8]} 53... Bc6 {[%clk 0:00:03.1]}
54. Ke5 {[%clk 0:00:04.4]} 54... Kc4 {[%clk 0:00:02.6]} 55. e4 {[%clk
0:00:05.3]} 55... Kb3 {[%clk 0:00:02.6]} 56. Kd6 {[%clk 0:00:05.8]} 56... Bb5
{[%clk 0:00:02.7]} 57. c6 {[%clk 0:00:06.4]} 57... Kxa3 {[%clk 0:00:02.4]} 58.
c7 {[%clk 0:00:06.6]} 58... Ba6 {[%clk 0:00:02.8]} 59. b5 {[%clk 0:00:06.3]}
59... Bb7 {[%clk 0:00:03]} 60. Kd7 {[%clk 0:00:04.6]} 60... Kb4 {[%clk
0:00:03.1]} 61. b6 {[%clk 0:00:04.1]} 61... a3 {[%clk 0:00:01.4]} 62. c8=Q
{[%clk 0:00:03.6]} 62... Bxc8+ {[%clk 0:00:01.9]} 63. Kxc8 {[%clk 0:00:03.9]}
63... a2 {[%clk 0:00:02.5]} 64. Bd4 {[%clk 0:00:04.1]} 1-0

[Event "*** Titled Tuesday Blitz"]
[Site "Chess.com"]
[Date "2020.05.12"]
[Round "4"]
[White "MacDaddyMac"]
[Black "venus02"]
[Result "1/2-1/2"]
[WhiteElo "2273"]
[BlackElo "2319"]
[TimeControl "180+1"]
[EndTime "10:40:06 PDT"]
[Termination "Game drawn by repetition"]

1. e4 {[%clk 0:03:00.9]} 1... c5 {[%clk 0:02:58]} 2. Nc3 {[%clk 0:03:01.2]} 2...
d6 {[%clk 0:02:56.4]} 3. f4 {[%clk 0:03:00.2]} 3... Nc6 {[%clk 0:02:55.3]} 4.
Nf3 {[%clk 0:03:00.7]} 4... g6 {[%clk 0:02:55.1]} 5. Bb5 {[%clk 0:02:59.4]} 5...
Bg7 {[%clk 0:02:55.2]} 6. Bxc6+ {[%clk 0:02:59]} 6... bxc6 {[%clk 0:02:54.6]} 7.
O-O {[%clk 0:02:59.9]} 7... Bg4 {[%clk 0:02:53]} 8. d3 {[%clk 0:02:59.8]} 8...
e6 {[%clk 0:02:52.5]} 9. Qe1 {[%clk 0:03:00.1]} 9... Bxf3 {[%clk 0:02:31.3]} 10.
Rxf3 {[%clk 0:02:59.7]} 10... Ne7 {[%clk 0:02:31.2]} 11. f5 {[%clk 0:02:56.9]}
11... exf5 {[%clk 0:02:18.5]} 12. exf5 {[%clk 0:02:55.6]} 12... Bd4+ {[%clk
0:02:17.8]} 13. Kh1 {[%clk 0:02:41.4]} 13... O-O {[%clk 0:02:16]} 14. f6 {[%clk
0:02:34.5]} 14... Nd5 {[%clk 0:02:09.2]} 15. Nxd5 {[%clk 0:02:34.2]} 15... cxd5
{[%clk 0:02:08.7]} 16. c3 {[%clk 0:02:21.3]} 16... Re8 {[%clk 0:02:07.8]} 17.
Qh4 {[%clk 0:02:19]} 17... Bxf6 {[%clk 0:02:06.3]} 18. Qf2 {[%clk 0:02:18]}
18... Bg7 {[%clk 0:01:49]} 19. Rxf7 {[%clk 0:02:15.4]} 19... Rf8 {[%clk
0:01:35.8]} 20. Rxf8+ {[%clk 0:02:14.2]} 20... Qxf8 {[%clk 0:01:35.4]} 21. Qxf8+
{[%clk 0:02:07.3]} 21... Rxf8 {[%clk 0:01:34.2]} 22. Be3 {[%clk 0:02:07.4]}
22... Re8 {[%clk 0:01:31.1]} 23. Re1 {[%clk 0:02:02.3]} 23... d4 {[%clk
0:01:26.9]} 24. Bd2 {[%clk 0:02:00.8]} 24... Rxe1+ {[%clk 0:01:25.7]} 25. Bxe1
{[%clk 0:02:01.7]} 25... dxc3 {[%clk 0:01:25.9]} 26. bxc3 {[%clk 0:02:01.3]}
26... Kf7 {[%clk 0:01:14.9]} 27. c4 {[%clk 0:01:59.7]} 27... Ke6 {[%clk
0:01:14.8]} 28. g3 {[%clk 0:01:58.4]} 28... h5 {[%clk 0:01:13.4]} 29. Kg2 {[%clk
0:01:58.4]} 29... Kf5 {[%clk 0:01:13.3]} 30. Kf3 {[%clk 0:01:58.6]} 30... Bd4
{[%clk 0:01:11.8]} 31. h3 {[%clk 0:01:58.7]} 31... a6 {[%clk 0:01:08.2]} 32. Bd2
{[%clk 0:01:55.9]} 32... d5 {[%clk 0:00:54]} 33. g4+ {[%clk 0:01:52.2]} 33...
hxg4+ {[%clk 0:00:53.8]} 34. hxg4+ {[%clk 0:01:52.6]} 34... Ke6 {[%clk
0:00:53.8]} 35. Kf4 {[%clk 0:01:49.8]} 35... Bf6 {[%clk 0:00:49.1]} 36. Be3
{[%clk 0:01:40.9]} 36... Be7 {[%clk 0:00:46.9]} 37. Bf2 {[%clk 0:01:31.3]} 37...
Kd6 {[%clk 0:00:43.5]} 38. Be1 {[%clk 0:01:16.6]} 38... Ke6 {[%clk 0:00:42.9]}
39. Ba5 {[%clk 0:01:15.7]} 39... Kd6 {[%clk 0:00:41.1]} 40. Bb6 {[%clk
0:01:15.7]} 40... Ke6 {[%clk 0:00:40.5]} 41. Bc7 {[%clk 0:01:15.7]} 41... Bf6
{[%clk 0:00:31.7]} 42. Bb8 {[%clk 0:01:06.7]} 42... Be7 {[%clk 0:00:27.9]} 43.
Ba7 {[%clk 0:00:55.3]} 43... Kd6 {[%clk 0:00:27.2]} 44. Bb8+ {[%clk 0:00:55]}
44... Ke6 {[%clk 0:00:26.7]} 45. Ba7 {[%clk 0:00:53.6]} 45... Kd6 {[%clk
0:00:17.3]} 46. Kf3 {[%clk 0:00:51.1]} 46... Ke5 {[%clk 0:00:16.6]} 47. Ke3
{[%clk 0:00:46.1]} 47... Bg5+ {[%clk 0:00:16.3]} 48. Ke2 {[%clk 0:00:43.4]}
48... dxc4 {[%clk 0:00:16]} 49. Bxc5 {[%clk 0:00:42.9]} 49... Kd5 {[%clk
0:00:15.4]} 50. Be3 {[%clk 0:00:38.5]} 50... Bxe3 {[%clk 0:00:14.1]} 51. Kxe3
{[%clk 0:00:39.4]} 51... c3 {[%clk 0:00:14]} 52. a4 {[%clk 0:00:32]} 52... a5
{[%clk 0:00:13.6]} 53. g5 {[%clk 0:00:28.5]} 53... Kc5 {[%clk 0:00:13.7]} 54.
d4+ {[%clk 0:00:25.3]} 54... Kc4 {[%clk 0:00:12.9]} 55. d5 {[%clk 0:00:24.2]}
55... Kxd5 {[%clk 0:00:12.8]} 56. Kd3 {[%clk 0:00:24.8]} 56... Ke5 {[%clk
0:00:09.3]} 57. Kxc3 {[%clk 0:00:24.6]} 57... Kf5 {[%clk 0:00:09.6]} 58. Kc4
{[%clk 0:00:25.5]} 58... Kxg5 {[%clk 0:00:09.9]} 59. Kb5 {[%clk 0:00:26.4]}
59... Kf6 {[%clk 0:00:10.2]} 60. Kxa5 {[%clk 0:00:27.3]} 60... g5 {[%clk
0:00:10.5]} 61. Kb5 {[%clk 0:00:27.3]} 61... g4 {[%clk 0:00:10.9]} 62. a5 {[%clk
0:00:27.9]} 62... g3 {[%clk 0:00:11.3]} 63. a6 {[%clk 0:00:28.5]} 63... g2
{[%clk 0:00:11.8]} 64. a7 {[%clk 0:00:29.1]} 64... g1=Q {[%clk 0:00:12]} 65.
a8=Q {[%clk 0:00:29.5]} 65... Qb1+ {[%clk 0:00:11.7]} 66. Kc5 {[%clk 0:00:29.9]}
66... Qc2+ {[%clk 0:00:11.6]} 67. Kb5 {[%clk 0:00:30]} 67... Qb3+ {[%clk
0:00:11.5]} 68. Kc5 {[%clk 0:00:30.3]} 68... Qc3+ {[%clk 0:00:11.7]} 69. Kb5
{[%clk 0:00:30.7]} 69... Qd3+ {[%clk 0:00:11.6]} 70. Kc5 {[%clk 0:00:30.8]}
70... Qe3+ {[%clk 0:00:11.7]} 71. Kb5 {[%clk 0:00:31.1]} 71... Qe5+ {[%clk
0:00:11.3]} 72. Kc4 {[%clk 0:00:30.5]} 72... Qf4+ {[%clk 0:00:11]} 73. Kc5
{[%clk 0:00:30.5]} 73... Qe3+ {[%clk 0:00:10.7]} 74. Kc4 {[%clk 0:00:30.1]}
74... Qe2+ {[%clk 0:00:10.7]} 75. Kc5 {[%clk 0:00:30.3]} 75... Qf2+ {[%clk
0:00:10.6]} 76. Kc4 {[%clk 0:00:30.6]} 76... Qe2+ {[%clk 0:00:10.8]} 77. Kc5
{[%clk 0:00:30.8]} 77... Qf2+ {[%clk 0:00:11.2]} 78. Kb5 {[%clk 0:00:31.2]}
78... Qe2+ {[%clk 0:00:11.3]} 79. Kc5 {[%clk 0:00:31.7]} 1/2-1/2

[Event "*** Titled Tuesday Blitz"]
[Site "Chess.com"]
[Date "2020.05.12"]
[Round "4"]
[White "BelaKis"]
[Black "SaqoChess_Twitch"]
[Result "1-0"]
[WhiteElo "2108"]
[BlackElo "2378"]
[TimeControl "180+1"]
[EndTime "10:40:07 PDT"]
[Termination "BelaKis won by resignation"]

1. Nf3 {[%clk 0:03:00.9]} 1... d5 {[%clk 0:02:59.8]} 2. g3 {[%clk 0:03:00.7]}
2... Nf6 {[%clk 0:03:00.7]} 3. Bg2 {[%clk 0:03:01.1]} 3... e6 {[%clk 0:03:01.6]}
4. O-O {[%clk 0:03:01.4]} 4... Be7 {[%clk 0:03:02.1]} 5. d3 {[%clk 0:03:02]}
5... O-O {[%clk 0:03:03]} 6. a3 {[%clk 0:03:02.9]} 6... c5 {[%clk 0:03:02.5]} 7.
Nbd2 {[%clk 0:03:03.8]} 7... Nc6 {[%clk 0:03:03]} 8. c4 {[%clk 0:03:04.1]} 8...
d4 {[%clk 0:03:02.9]} 9. b4 {[%clk 0:03:04.1]} 9... cxb4 {[%clk 0:03:02.5]} 10.
Qa4 {[%clk 0:03:04.1]} 10... bxa3 {[%clk 0:03:02.2]} 11. Bxa3 {[%clk 0:03:04.2]}
11... Bxa3 {[%clk 0:03:02.7]} 12. Qxa3 {[%clk 0:03:02.6]} 12... e5 {[%clk
0:03:02.5]} 13. Ng5 {[%clk 0:02:54.6]} 13... h6 {[%clk 0:03:01.5]} 14. Nge4
{[%clk 0:02:54.7]} 14... Nxe4 {[%clk 0:03:00.5]} 15. Nxe4 {[%clk 0:02:55.6]}
15... Bg4 {[%clk 0:02:59.7]} 16. Ra2 {[%clk 0:02:54]} 16... Qe7 {[%clk
0:02:56.9]} 17. Qxe7 {[%clk 0:02:45.4]} 17... Nxe7 {[%clk 0:02:57.8]} 18. Nd6
{[%clk 0:02:40.7]} 18... a5 {[%clk 0:02:48.1]} 19. Nxb7 {[%clk 0:02:38.3]} 19...
Ra7 {[%clk 0:02:43.4]} 20. Nd6 {[%clk 0:02:27.2]} 20... a4 {[%clk 0:02:42.4]}
21. h3 {[%clk 0:02:24]} 21... Bh5 {[%clk 0:02:39.8]} 22. g4 {[%clk 0:02:19.5]}
22... Bg6 {[%clk 0:02:39.8]} 23. Rfa1 {[%clk 0:02:19.3]} 23... Ra6 {[%clk
0:02:34.9]} 24. Nb5 {[%clk 0:02:18.5]} 24... f5 {[%clk 0:02:30.5]} 25. Rxa4
{[%clk 0:02:07.9]} 25... Raf6 {[%clk 0:02:29.3]} 26. Ra6 {[%clk 0:02:00.1]}
26... fxg4 {[%clk 0:02:16.5]} 27. Rxf6 {[%clk 0:01:59.7]} 27... gxf6 {[%clk
0:02:11.8]} 28. hxg4 {[%clk 0:01:56.6]} 28... h5 {[%clk 0:02:11.9]} 29. Ra7
{[%clk 0:01:55.1]} 29... Rf7 {[%clk 0:02:01.5]} 30. Nd6 {[%clk 0:01:45.9]} 30...
Rg7 {[%clk 0:01:59.8]} 31. gxh5 {[%clk 0:01:31.8]} 31... Bxh5 {[%clk 0:02:00.7]}
32. Kf1 {[%clk 0:01:31.7]} 32... Ng6 {[%clk 0:01:45.5]} 33. Rxg7+ {[%clk
0:01:30.3]} 33... Kxg7 {[%clk 0:01:46.4]} 34. c5 {[%clk 0:01:24.7]} 34... Nf4
{[%clk 0:01:43.5]} 35. f3 {[%clk 0:01:14.4]} 35... Ne6 {[%clk 0:01:38.4]} 36. c6
{[%clk 0:01:13.5]} 36... Kf8 {[%clk 0:01:38.8]} 37. Bh3 {[%clk 0:01:12.8]} 37...
Nc7 {[%clk 0:01:37.3]} 38. Bg4 {[%clk 0:01:00]} 38... Be8 {[%clk 0:01:34.1]} 39.
Bd7 {[%clk 0:00:58.9]} 39... Bxd7 {[%clk 0:01:16.2]} 40. cxd7 {[%clk 0:00:59.8]}
40... Ke7 {[%clk 0:01:16.8]} 41. Ne4 {[%clk 0:00:51.5]} 41... Nd5 {[%clk
0:01:12.5]} 42. Kf2 {[%clk 0:00:47.6]} 42... Kxd7 {[%clk 0:01:11.2]} 43. Ng3
{[%clk 0:00:45.8]} 43... Ke6 {[%clk 0:01:09.6]} 44. Ne4 {[%clk 0:00:41.7]} 44...
Ne3 {[%clk 0:00:51.7]} 45. Nc5+ {[%clk 0:00:39.8]} 45... Kd5 {[%clk 0:00:37.7]}
46. Ne4 {[%clk 0:00:40.7]} 46... f5 {[%clk 0:00:37.6]} 47. Nf6+ {[%clk
0:00:40.9]} 47... Ke6 {[%clk 0:00:37.3]} 48. Nh5 {[%clk 0:00:41]} 48... Kf7
{[%clk 0:00:36]} 49. Ng3 {[%clk 0:00:40.8]} 49... Kg6 {[%clk 0:00:35.6]} 50. Nh1
{[%clk 0:00:33.7]} 50... Kg5 {[%clk 0:00:32]} 51. Ke1 {[%clk 0:00:17.2]} 51...
Kh4 {[%clk 0:00:31.1]} 52. Nf2 {[%clk 0:00:17]} 52... Kg3 {[%clk 0:00:31.7]} 53.
Nd1 {[%clk 0:00:17]} 53... Ng2+ {[%clk 0:00:17.5]} 54. Kd2 {[%clk 0:00:16.6]}
54... Kh2 {[%clk 0:00:15.1]} 55. Nb2 {[%clk 0:00:15.8]} 55... Ne3 {[%clk
0:00:14.4]} 56. Nc4 {[%clk 0:00:15.3]} 56... Nf1+ {[%clk 0:00:12.9]} 57. Ke1
{[%clk 0:00:15.1]} 57... Kg2 {[%clk 0:00:12.3]} 58. Nxe5 {[%clk 0:00:14.7]}
58... Ne3 {[%clk 0:00:12.8]} 59. Nc6 {[%clk 0:00:14.9]} 59... Nc2+ {[%clk
0:00:12.5]} 60. Kd2 {[%clk 0:00:15.2]} 60... Ne3 {[%clk 0:00:09.1]} 61. Nxd4
{[%clk 0:00:15.4]} 61... f4 {[%clk 0:00:10]} 62. Ne6 {[%clk 0:00:15.4]} 62...
Nd5 {[%clk 0:00:10.1]} 63. Nxf4+ {[%clk 0:00:14.6]} 63... Nxf4 {[%clk
0:00:09.5]} 64. e3 {[%clk 0:00:15.5]} 64... Ne6 {[%clk 0:00:08.4]} 65. f4 {[%clk
0:00:15.7]} 65... Kf3 {[%clk 0:00:09.1]} 66. f5 {[%clk 0:00:16.1]} 66... Ng5
{[%clk 0:00:09.7]} 67. e4 {[%clk 0:00:16.4]} 67... Kf4 {[%clk 0:00:09.9]} 68.
Kc3 {[%clk 0:00:16.8]} 68... Ke5 {[%clk 0:00:10.5]} 69. Kc4 {[%clk 0:00:17.2]}
69... Nf7 {[%clk 0:00:09.4]} 70. Kc5 {[%clk 0:00:17.4]} 70... Nd6 {[%clk
0:00:09.1]} 71. d4+ {[%clk 0:00:17.5]} 71... Kxe4 {[%clk 0:00:06.8]} 72. Kxd6
{[%clk 0:00:18.4]} 72... Kxf5 {[%clk 0:00:07.6]} 73. d5 {[%clk 0:00:18.4]} 1-0

[Event "*** Titled Tuesday Blitz"]
[Site "Chess.com"]
[Date "2020.05.12"]
[Round "4"]
[White "snowlord"]
[Black "LizaSolovyova"]
[Result "0-1"]
[WhiteElo "2752"]
[BlackElo "2596"]
[TimeControl "180+1"]
[EndTime "10:40:08 PDT"]
[Termination "LizaSolovyova won by checkmate"]

1. e4 {[%clk 0:03:00]} 1... e5 {[%clk 0:02:59.2]} 2. Nf3 {[%clk 0:02:59.8]} 2...
d6 {[%clk 0:02:59.7]} 3. d4 {[%clk 0:02:59.1]} 3... Qe7 {[%clk 0:02:59.4]} 4.
Nc3 {[%clk 0:02:52.9]} 4... c6 {[%clk 0:02:54.2]} 5. dxe5 {[%clk 0:02:47.6]}
5... dxe5 {[%clk 0:02:54.3]} 6. a4 {[%clk 0:02:48.2]} 6... a5 {[%clk 0:02:54.1]}
7. Bc4 {[%clk 0:02:45.1]} 7... h6 {[%clk 0:02:54.2]} 8. O-O {[%clk 0:02:42]}
8... Nf6 {[%clk 0:02:54]} 9. b3 {[%clk 0:02:21.9]} 9... Qc7 {[%clk 0:02:53.3]}
10. Nh4 {[%clk 0:01:48.3]} 10... Bg4 {[%clk 0:02:45.5]} 11. f3 {[%clk 0:01:42]}
11... Bc5+ {[%clk 0:02:43.6]} 12. Kh1 {[%clk 0:01:41.2]} 12... Bd7 {[%clk
0:02:19.8]} 13. Bb2 {[%clk 0:01:02.8]} 13... Bd4 {[%clk 0:02:11.2]} 14. f4
{[%clk 0:00:54.2]} 14... Bg4 {[%clk 0:02:03.9]} 15. Qd2 {[%clk 0:00:47.5]} 15...
Nbd7 {[%clk 0:01:48.5]} 16. h3 {[%clk 0:00:34.6]} 16... h5 {[%clk 0:01:21]} 17.
Nf5 {[%clk 0:00:16.8]} 17... Bxf5 {[%clk 0:01:17.8]} 18. exf5 {[%clk 0:00:17.7]}
18... O-O-O {[%clk 0:01:18.4]} 19. Qe1 {[%clk 0:00:09.3]} 19... exf4 {[%clk
0:01:15.3]} 20. Bxf7 {[%clk 0:00:08.6]} 20... Ne5 {[%clk 0:01:10.1]} 21. Be6+
{[%clk 0:00:08.4]} 21... Kb8 {[%clk 0:01:10.7]} 22. Nd1 {[%clk 0:00:04.9]} 22...
f3 {[%clk 0:00:59.9]} 23. gxf3 {[%clk 0:00:04.6]} 23... Bxb2 {[%clk 0:00:53.1]}
24. Nxb2 {[%clk 0:00:05.5]} 24... Rd4 {[%clk 0:00:53.4]} 25. f4 {[%clk
0:00:05.6]} 25... Ned7 {[%clk 0:00:41.4]} 26. Nd3 {[%clk 0:00:05.8]} 26... c5
{[%clk 0:00:38.5]} 27. Ne5 {[%clk 0:00:05.9]} 27... Re4 {[%clk 0:00:36.6]} 28.
Nxd7+ {[%clk 0:00:04.7]} 28... Ka7 {[%clk 0:00:30.7]} 29. Qd2 {[%clk 0:00:03.2]}
29... Rd8 {[%clk 0:00:22.9]} 30. Qc3 {[%clk 0:00:02]} 30... Nxd7 {[%clk
0:00:20.5]} 31. Rad1 {[%clk 0:00:01.8]} 31... Qc6 {[%clk 0:00:16.1]} 32. Bd5
{[%clk 0:00:01.8]} 32... Qf6 {[%clk 0:00:09.6]} 33. Bxe4 {[%clk 0:00:02.7]}
33... Qxc3 {[%clk 0:00:09.7]} 34. Rd3 {[%clk 0:00:03.2]} 34... Qf6 {[%clk
0:00:07.4]} 35. Rfd1 {[%clk 0:00:04.1]} 35... Qh4 {[%clk 0:00:04.1]} 36. Bg2
{[%clk 0:00:05]} 36... Qxf4 {[%clk 0:00:03.8]} 37. Rxd7 {[%clk 0:00:05.3]} 37...
Rxd7 {[%clk 0:00:04.3]} 38. Rxd7 {[%clk 0:00:06.2]} 38... Qc1+ {[%clk
0:00:04.6]} 39. Kh2 {[%clk 0:00:06.7]} 39... Qf4+ {[%clk 0:00:05]} 40. Kg1
{[%clk 0:00:07.2]} 40... Qe3+ {[%clk 0:00:04.7]} 41. Kh1 {[%clk 0:00:07.5]}
41... Qc1+ {[%clk 0:00:04.9]} 42. Kh2 {[%clk 0:00:07.5]} 42... Qf4+ {[%clk
0:00:05.6]} 43. Kg1 {[%clk 0:00:08.1]} 43... Qe3+ {[%clk 0:00:05]} 44. Kf1
{[%clk 0:00:08.5]} 44... Qf4+ {[%clk 0:00:03.7]} 45. Ke2 {[%clk 0:00:08.3]}
45... Qxf5 {[%clk 0:00:04.2]} 46. Rxb7+ {[%clk 0:00:07.8]} 46... Ka6 {[%clk
0:00:04.8]} 47. Rb5 {[%clk 0:00:04.8]} 47... Qxc2+ {[%clk 0:00:04.9]} 48. Kf1
{[%clk 0:00:05.7]} 48... Qd3+ {[%clk 0:00:05.1]} 49. Kf2 {[%clk 0:00:05.6]}
49... Qd4+ {[%clk 0:00:04.9]} 50. Kf1 {[%clk 0:00:05.7]} 50... g5 {[%clk
0:00:04.3]} 51. Bb7+ {[%clk 0:00:05.1]} 51... Ka7 {[%clk 0:00:04.9]} 52. Bg2
{[%clk 0:00:06]} 52... Ka6 {[%clk 0:00:05.1]} 53. Bb7+ {[%clk 0:00:05.4]} 53...
Ka7 {[%clk 0:00:05.7]} 54. Bg2 {[%clk 0:00:06.3]} 54... g4 {[%clk 0:00:05.8]}
55. hxg4 {[%clk 0:00:06.2]} 55... hxg4 {[%clk 0:00:06]} 56. Rxa5+ {[%clk
0:00:06.5]} 56... Kb6 {[%clk 0:00:05.5]} 57. Rb5+ {[%clk 0:00:07.4]} 57... Kc7
{[%clk 0:00:06.1]} 58. Rb7+ {[%clk 0:00:06.7]} 58... Kc8 {[%clk 0:00:06.7]} 59.
a5 {[%clk 0:00:06.4]} 59... g3 {[%clk 0:00:07]} 60. Rf7 {[%clk 0:00:06]} 60...
Qd1# {[%clk 0:00:07.4]} 0-1

[Event "*** Titled Tuesday Blitz"]
[Site "Chess.com"]
[Date "2020.05.12"]
[Round "4"]
[White "DLR7"]
[Black "Niclox"]
[Result "1/2-1/2"]
[WhiteElo "2718"]
[BlackElo "2575"]
[TimeControl "180+1"]
[EndTime "10:40:08 PDT"]
[Termination "Game drawn - insufficient material"]

1. e4 {[%clk 0:03:00.9]} 1... c5 {[%clk 0:02:57.6]} 2. Nf3 {[%clk 0:02:57.2]}
2... d6 {[%clk 0:02:57.9]} 3. b4 {[%clk 0:02:55]} 3... cxb4 {[%clk 0:02:53.8]}
4. d4 {[%clk 0:02:54.8]} 4... Nf6 {[%clk 0:02:49.7]} 5. Bd3 {[%clk 0:02:53.3]}
5... g6 {[%clk 0:02:49.9]} 6. O-O {[%clk 0:02:50.9]} 6... Bg7 {[%clk 0:02:49.9]}
7. a3 {[%clk 0:02:49.3]} 7... bxa3 {[%clk 0:02:47.5]} 8. Nxa3 {[%clk 0:02:43.4]}
8... O-O {[%clk 0:02:47.5]} 9. Re1 {[%clk 0:02:40]} 9... Bg4 {[%clk 0:02:45.1]}
10. h3 {[%clk 0:02:35.5]} 10... Bxf3 {[%clk 0:02:45]} 11. Qxf3 {[%clk
0:02:35.8]} 11... Nc6 {[%clk 0:02:45.9]} 12. c3 {[%clk 0:02:29.7]} 12... Rc8
{[%clk 0:02:45.8]} 13. Nc2 {[%clk 0:02:25.5]} 13... a6 {[%clk 0:02:41.9]} 14.
Bg5 {[%clk 0:02:22.2]} 14... Na5 {[%clk 0:02:39.6]} 15. Ra3 {[%clk 0:02:18.7]}
15... Nc4 {[%clk 0:02:39.7]} 16. Bxc4 {[%clk 0:02:17.2]} 16... Rxc4 {[%clk
0:02:40.3]} 17. Rb1 {[%clk 0:02:04.3]} 17... Qc8 {[%clk 0:02:33.1]} 18. Bxf6
{[%clk 0:01:53]} 18... Bxf6 {[%clk 0:02:31.2]} 19. Nb4 {[%clk 0:01:53.6]} 19...
Re8 {[%clk 0:01:56.9]} 20. Nd5 {[%clk 0:01:51.3]} 20... Rc6 {[%clk 0:01:56.9]}
21. Nb6 {[%clk 0:01:44.1]} 21... Qd8 {[%clk 0:01:56.7]} 22. Nd5 {[%clk
0:01:42.1]} 22... Qc8 {[%clk 0:01:50.7]} 23. Nb6 {[%clk 0:01:41.8]} 23... Qb8
{[%clk 0:01:47.5]} 24. Nd5 {[%clk 0:01:40]} 24... Bg7 {[%clk 0:01:45]} 25. e5
{[%clk 0:01:34.8]} 25... Qc8 {[%clk 0:01:29.9]} 26. exd6 {[%clk 0:01:29.8]}
26... exd6 {[%clk 0:01:30.8]} 27. g4 {[%clk 0:01:23.3]} 27... h6 {[%clk
0:01:14]} 28. Kg2 {[%clk 0:01:21.6]} 28... Re6 {[%clk 0:01:10.2]} 29. Ra2 {[%clk
0:01:17.7]} 29... Qd7 {[%clk 0:00:59.3]} 30. Rab2 {[%clk 0:01:13.9]} 30... b5
{[%clk 0:00:59.5]} 31. Re2 {[%clk 0:01:13.4]} 31... Rxe2 {[%clk 0:00:55.9]} 32.
Qxe2 {[%clk 0:01:13.8]} 32... Rc4 {[%clk 0:00:56.8]} 33. Re1 {[%clk 0:01:11.1]}
33... Qe6 {[%clk 0:00:36.5]} 34. Qxe6 {[%clk 0:01:09.2]} 34... fxe6 {[%clk
0:00:37.4]} 35. Rxe6 {[%clk 0:01:09.9]} 35... a5 {[%clk 0:00:37.7]} 36. Rxd6
{[%clk 0:01:06.5]} 36... b4 {[%clk 0:00:32.3]} 37. cxb4 {[%clk 0:01:07.1]} 37...
axb4 {[%clk 0:00:32.5]} 38. Rxg6 {[%clk 0:01:04.9]} 38... Kf7 {[%clk 0:00:32.8]}
39. Rb6 {[%clk 0:01:00.9]} 39... Bf8 {[%clk 0:00:32.9]} 40. Rb7+ {[%clk
0:00:57.2]} 40... Ke6 {[%clk 0:00:31.3]} 41. Nf4+ {[%clk 0:00:57.5]} 41... Kd6
{[%clk 0:00:30.6]} 42. Rb6+ {[%clk 0:00:53.3]} 42... Kc7 {[%clk 0:00:28.3]} 43.
Rb5 {[%clk 0:00:50.1]} 43... Kc6 {[%clk 0:00:26.3]} 44. Ra5 {[%clk 0:00:49.5]}
44... b3 {[%clk 0:00:22.6]} 45. Ra1 {[%clk 0:00:47.7]} 45... b2 {[%clk 0:00:21]}
46. Rb1 {[%clk 0:00:46.2]} 46... Ba3 {[%clk 0:00:21.3]} 47. Nd3 {[%clk
0:00:46.3]} 47... Rc1 {[%clk 0:00:20.5]} 48. Nxc1 {[%clk 0:00:44.2]} 48...
bxc1=Q {[%clk 0:00:19.6]} 49. Rxc1+ {[%clk 0:00:45]} 49... Bxc1 {[%clk
0:00:20.5]} 50. Kf3 {[%clk 0:00:44.9]} 50... Kd5 {[%clk 0:00:20.4]} 51. Kg3
{[%clk 0:00:44.5]} 51... Kxd4 {[%clk 0:00:19.7]} 52. f4 {[%clk 0:00:42.6]} 52...
Ke4 {[%clk 0:00:19.1]} 53. f5 {[%clk 0:00:41.7]} 53... Ke5 {[%clk 0:00:19.1]}
54. Kh4 {[%clk 0:00:41.3]} 54... Kf6 {[%clk 0:00:18.7]} 55. Kh5 {[%clk
0:00:41.7]} 55... Bd2 {[%clk 0:00:19]} 56. h4 {[%clk 0:00:42]} 56... Bc1 {[%clk
0:00:19.3]} 57. g5+ {[%clk 0:00:41.3]} 57... hxg5 {[%clk 0:00:16.5]} 58. hxg5+
{[%clk 0:00:42.2]} 58... Bxg5 {[%clk 0:00:17.1]} 59. Kg4 {[%clk 0:00:41.9]}
59... Bc1 {[%clk 0:00:17.2]} 60. Kh5 {[%clk 0:00:39.2]} 60... Kxf5 {[%clk
0:00:10.6]} 1/2-1/2